lending/lending_fUSD_20251018
["ID","MTS","AMOUNT","RATE_DAILY","PERIOD"]
[391754395,1760781039114,-1000.0,0.00027252,2]
[391754396,1760781039124,-250.0,0.00027252,2]
[391754397,1760781039133,-9552.16786547,0.00027252,2]
[391754398,1760781039143,-1000.0,0.00027252,2]
[391754399,1760781039153,-250.0,0.00027252,2]
[391754400,1760781039163,-1000.0,0.00027252,2]
[391754401,1760781039173,-250.0,0.00027252,2]
[391754402,1760781039182,-1000.0,0.00027252,2]
[391754403,1760781039192,-1000.0,0.00027252,2]
[391754404,1760781039201,-250.0,0.00027252,2]
[391754405,1760781039210,-1000.0,0.00027252,2]
[391754406,1760781039220,-250.0,0.00027252,2]
[391754407,1760781039230,-1000.0,0.00027252,2]
[391754408,1760781039240,-250.0,0.00027252,2]
[391754409,1760781039252,-250.0,0.00027252,2]
[391754410,1760781039262,-250.0,0.00027252,2]
[391754411,1760781039511,-250.0,0.00027252,2]
[391754412,1760781039523,-250.0,0.00027252,2]
[391754413,1760781039533,-1000.0,0.00027252,2]
[391754414,1760781039542,-1000.0,0.00027252,2]
[391754415,1760781039552,-1000.0,0.00027252,2]
[391754416,1760781039561,-1000.0,0.00027252,2]
[391754417,1760781039571,-1000.0,0.00027252,2]
[391754418,1760781039581,-1000.0,0.00027252,2]
[391754419,1760781039591,-1000.0,0.00027252,2]
[391754420,1760781039600,-1000.0,0.00027252,2]
[391754421,1760781039609,-1000.0,0.00027252,2]
[391754422,1760781039619,-1000.0,0.00027252,2]
[391754423,1760781039628,-1000.0,0.00027252,2]
[391754424,1760781039638,-322.6107,0.00027252,2]
[391754425,1760781039647,-300.0,0.00027263,2]
[391754426,1760781039657,-769.74,0.00027291,2]
[391754427,1760781039667,-2607.61353804,0.00027297,2]
[391754428,1760781039677,-9905.5980765,0.00027307,2]
[391754429,1760781039686,-1303.80676902,0.00027352,2]
[391754430,1760781039699,-10272.10520533,0.00027362,2]
[391754431,1760781039710,-169.67713967,0.00027384,2]
[391754432,1760781039720,-600.0,0.00027398,2]
[391754433,1760781039730,-2607.61353804,0.00027407,2]
[391754434,1760781039740,-10652.17309792,0.00027417,2]
[391754435,1760781039749,-198.47,0.0002745,2]
[391754436,1760781039759,-1303.80676902,0.00027462,2]
[391754437,1760781039769,-11046.30350255,0.00027472,2]
[391754438,1760781039778,-159.31,0.00027484,2]
[391754439,1760781039789,-239.48174697,0.00027527,2]
[391754440,1760781039801,-381.9,0.00027669,2]
[391754441,1760781039811,-1303.80676902,0.00027709,2]
[391754442,1760781039821,-7629.28958635,0.00027719,8]
[391754443,1760781039831,-288.65351942,0.00027719,30]
[391754444,1760781039840,-1000.0,0.00027864,2]
[391754445,1760781039850,-613.31505004,0.00027946,2]
[391754446,1760781039859,-1303.80676902,0.00028012,2]
[391754447,1760781039868,-1600.0,0.00028022,120]
[391754448,1760781039878,-769.74,0.00028029,2]
[391754449,1760781039891,-500.0,0.00028521,2]
[391754450,1760781039901,-287.61899177,0.00028621,2]
[391754451,1760781039910,-241.67246117,0.00028621,2]
[391754452,1760781039920,-2771.85,0.00028987,10]
[391754453,1760781039929,-1303.80676902,0.00029271,2]
[391754454,1760781039939,-203.34265712,0.00029293,7]
[391754455,1760781039949,-150.0,0.00029293,7]
[391754456,1760781039959,-150.0,0.00029554,2]
[391754457,1760781039970,-189.63,0.00029575,2]
[391754458,1760781039979,-197.32,0.00029575,2]
[391754459,1760781039989,-1207.48,0.00029699,2]
[391754460,1760781039999,-955.18,0.00029699,2]
[391754461,1760781040009,-250.0,0.00029793,7]
[391754462,1760781040019,-166.66,0.00029806,30]
[391754463,1760781040029,-666.0,0.00029878,3]
[391754464,1760781040039,-1000.0,0.00029897,2]
[391754465,1760781040049,-198.47,0.00029915,2]
[391754466,1760781040058,-169.67713967,0.00029925,15]
[391754467,1760781040068,-159.31,0.00029983,2]
[391754468,1760781040078,-298.26089446,0.0002999,2]
[391754469,1760781040091,-296.1878512,0.00030024,2]
[391754470,1760781040100,-546.8,0.00030032,2]
[391754471,1760781040110,-150.0,0.00030032,2]
[391754472,1760781040119,-413.73,0.00030032,2]
[391754473,1760781040129,-150.0,0.00030032,2]
[391754474,1760781040139,-412.33,0.00030032,2]
[391754475,1760781040148,-150.0,0.00030032,2]
[391754476,1760781040157,-168.22,0.0003011,2]
[391754477,1760781040166,-1303.80676902,0.00030332,2]
[391754478,1760781040176,-166.66,0.00030433,30]
[391754479,1760781040185,-470.42,0.00030438,2]
[391754480,1760781040194,-474.87,0.00030438,2]
[391754481,1760781040203,-546.8,0.00030556,2]
[391754482,1760781040213,-151.42,0.00030556,2]
[391754483,1760781040223,-150.0,0.00030556,2]
[391754484,1760781040232,-413.73,0.00030556,2]
[391754485,1760781040242,-1303.80676902,0.00030648,2]
[391754486,1760781040255,-1000.0,0.0003065,2]
[391754487,1760781040266,-1213.4,0.00030656,2]
[391754488,1760781040275,-546.8,0.00030656,2]
[391754489,1760781040287,-168.27,0.00030656,2]
[391754490,1760781040297,-546.8,0.00030656,2]
[391754491,1760781040306,-168.27,0.00030656,2]
[391754492,1760781040315,-300.0,0.00030656,2]
[391754493,1760781040326,-413.73,0.00030656,2]
[391754494,1760781040335,-518.51,0.00030658,2]
[391754495,1760781040345,-1425.0,0.00030798,2]
[391754496,1760781040355,-151.0,0.00030825,7]
[391754497,1760781040365,-1303.80676902,0.00030849,2]
[391754498,1760781040375,-266.19,0.00030859,2]
[391754499,1760781040385,-300.0,0.00030859,2]
[391754500,1760781040394,-176.09,0.00030859,2]
[391754501,1760781040404,-301.04,0.00030859,2]
[391754502,1760781040414,-151.85,0.00030859,2]
[391754503,1760781040423,-273.81,0.00030859,2]
[391754504,1760781040432,-168.22,0.00030859,2]
[391754505,1760781040442,-301.22,0.00030859,2]
[391754506,1760781040451,-150.0,0.00030859,2]
[391754507,1760781040461,-176.09,0.00030859,2]
[391754508,1760781040471,-833.55,0.00030859,2]
[391754509,1760781040480,-176.09,0.00030859,2]
[391754510,1760781040488,-176.09,0.00030859,2]
[391754511,1760781040497,-176.09,0.00030859,2]
[391754512,1760781040509,-176.09,0.00030859,2]
[391754513,1760781040518,-176.09,0.00030859,2]
[391754514,1760781040528,-351.87,0.00030932,2]
[391754515,1760781040537,-1006.0,0.00031,2]
[391754516,1760781040547,-153.0,0.00031,120]
[391754517,1760781040556,-166.66,0.00031061,30]
[391754518,1760781040567,-1303.80676902,0.00031061,2]
[391754519,1760781040577,-1303.80676902,0.00031349,2]
[391754520,1760781040587,-309.29654756,0.00031359,2]
[391754521,1760781040597,-1425.0,0.00031391,2]
[391754522,1760781040607,-2607.61353804,0.00031405,2]
[391754523,1760781040617,-16179.15,0.00031415,2]
[391754524,1760781040626,-922.03116397,0.00031428,2]
[391754525,1760781040635,-1303.80676902,0.00031459,2]
[391754526,1760781040645,-1425.0,0.00031496,2]
[391754527,1760781040654,-200.0,0.000316,11]
[391754528,1760781040664,-2763.88119448,0.00031622,4]
[391754529,1760781040674,-1303.80676902,0.00031658,2]
[391754530,1760781040695,-168.27,0.00031671,2]
[391754531,1760781040704,-168.27,0.00031671,2]
[391754532,1760781040714,-168.0,0.00031682,2]
[391754533,1760781040724,-1425.0,0.00031684,2]
[391754534,1760781040733,-166.66,0.00031688,30]
[391754535,1760781040743,-500.0,0.000317,11]
[391754536,1760781040752,-800.0,0.000318,11]
[391754537,1760781040762,-1303.80676902,0.00031858,2]
[391754538,1760781040773,-1100.0,0.000319,11]
[391754539,1760781040783,-160.0,0.00032,30]
[391754540,1760781040793,-160.0,0.00032,30]
[391754541,1760781040803,-160.0,0.00032,90]
[391754542,1760781040812,-160.0,0.00032,90]
[391754543,1760781040822,-160.0,0.00032,60]
[391754544,1760781040831,-160.0,0.00032,60]
[391754545,1760781040840,-160.0,0.00032,60]
[391754546,1760781040850,-166.38,0.00032,27]
[391754547,1760781040859,-1303.80676902,0.00032059,2]
[391754548,1760781040869,-1425.0,0.00032069,2]
[391754549,1760781040878,-200.0,0.00032131,2]
[391754550,1760781040888,-200.0,0.00032136,2]
[391754551,1760781040897,-200.0,0.0003214,2]
[391754552,1760781040907,-752.94,0.00032232,2]
[391754553,1760781040916,-150.0,0.00032242,7]
[391754554,1760781040926,-300.0,0.00032242,7]
[391754555,1760781040935,-1303.80676902,0.00032264,2]
[391754556,1760781040945,-5000.0,0.00032274,2]
[391754557,1760781040957,-154.37,0.00032278,2]
[391754558,1760781040967,-150.54192438,0.00032291,2]
[391754559,1760781040978,-160.53722172,0.000323,4]
[391754560,1760781040987,-524.33734211,0.000323,2]
[391754561,1760781040997,-166.66,0.00032316,30]
[391754562,1760781041007,-492.370403,0.00032324,2]
[391754563,1760781041017,-150.54192438,0.00032335,2]
[391754564,1760781041026,-500.0,0.00032345,2]
[391754565,1760781041035,-150.0,0.00032345,2]
[391754566,1760781041045,-500.0,0.00032345,2]
[391754567,1760781041054,-500.0,0.00032345,2]
[391754568,1760781041063,-500.0,0.00032345,2]
[391754569,1760781041074,-150.0,0.00032345,2]
[391754570,1760781041084,-150.0,0.00032345,2]
[391754571,1760781041094,-151.24450511,0.00032345,2]
[391754572,1760781041105,-150.0,0.00032345,2]
[391754573,1760781041115,-150.0,0.00032345,2]
[391754574,1760781041127,-152.51201332,0.00032345,2]
[391754575,1760781041136,-500.0,0.00032345,2]
[391754576,1760781041147,-500.0,0.00032345,2]
[391754577,1760781041156,-500.0,0.00032345,2]
[391754578,1760781041166,-500.0,0.00032345,2]
[391754579,1760781041177,-150.0,0.00032345,2]
[391754580,1760781041187,-500.0,0.00032345,2]
[391754581,1760781041197,-150.0,0.00032345,2]
[391754582,1760781041207,-150.0,0.00032345,2]
[391754583,1760781041216,-250.0,0.00032345,2]
[391754584,1760781041229,-213.51386677,0.0003235,2]
[391754585,1760781041240,-151.0,0.0003235,30]
[391754586,1760781041255,-188.867838,0.0003235,30]
[391754587,1760781041265,-188.867838,0.0003235,30]
[391754588,1760781041274,-151.0,0.0003235,30]
[391754589,1760781041284,-188.867838,0.0003235,30]
[391754590,1760781041294,-188.867838,0.0003235,30]
[391754591,1760781041304,-194.367176,0.0003235,30]
[391754592,1760781041314,-194.367176,0.0003235,30]
[391754593,1760781041325,-194.367176,0.0003235,30]
[391754594,1760781041335,-194.367176,0.0003235,30]
[391754595,1760781041346,-151.0,0.0003235,30]
[391754596,1760781041355,-177.571224,0.0003235,30]
[391754597,1760781041365,-177.571224,0.0003235,30]
[391754598,1760781041374,-151.0,0.0003235,30]
[391754599,1760781041384,-177.571224,0.0003235,30]
[391754600,1760781041393,-151.0,0.0003235,30]
[391754601,1760781041403,-177.571224,0.0003235,30]
[391754602,1760781041414,-151.0,0.0003235,30]
[391754603,1760781041425,-186.589165,0.0003235,30]
[391754604,1760781041435,-151.0,0.0003235,30]
[391754605,1760781041445,-151.0,0.0003235,30]
[391754606,1760781041455,-283.188647,0.0003235,30]
[391754607,1760781041464,-151.0,0.0003235,30]
[391754608,1760781041474,-151.0,0.0003235,20]
[391754609,1760781041483,-151.0,0.0003235,30]
[391754610,1760781041493,-253.468723,0.0003235,20]
[391754611,1760781041503,-151.0,0.0003235,30]
[391754612,1760781041512,-151.0,0.0003235,30]
[391754613,1760781041521,-151.0,0.0003235,30]
[391754614,1760781041531,-151.0,0.0003235,30]
[391754615,1760781041541,-151.0,0.0003235,30]
[391754616,1760781041552,-490.68182808,0.00032371,2]
[391754617,1760781041562,-151.0,0.00032378,7]
[391754618,1760781041572,-150.54192438,0.00032378,2]
[391754619,1760781041583,-2944.09096848,0.00032379,2]
[391754620,1760781041592,-151.0,0.0003238,30]
[391754621,1760781041602,-674.516172,0.0003238,30]
[391754622,1760781041615,-674.516172,0.0003238,30]
[391754623,1760781041624,-674.516172,0.0003238,30]
[391754624,1760781041634,-674.516172,0.0003238,30]
[391754625,1760781041643,-151.0,0.0003238,30]
[391754626,1760781041653,-590.217247,0.0003238,30]
[391754627,1760781041662,-590.217247,0.0003238,30]
[391754628,1760781041672,-590.217247,0.0003238,30]
[391754629,1760781041682,-636.502056,0.0003238,30]
[391754630,1760781041691,-590.217247,0.0003238,30]
[391754631,1760781041701,-151.0,0.0003238,30]
[391754632,1760781041710,-636.502056,0.0003238,30]
[391754633,1760781041720,-151.0,0.0003238,30]
[391754634,1760781041729,-636.502056,0.0003238,30]
[391754635,1760781041739,-181.584104,0.0003238,30]
[391754636,1760781041748,-151.0,0.0003238,30]
[391754637,1760781041758,-151.0,0.0003238,30]
[391754638,1760781041774,-151.0,0.0003238,30]
[391754639,1760781041783,-181.584104,0.0003238,30]
[391754640,1760781041792,-151.362189,0.0003238,30]
[391754641,1760781041802,-636.502056,0.0003238,30]
[391754642,1760781041812,-181.584104,0.0003238,30]
[391754643,1760781041822,-181.584104,0.0003238,30]
[391754644,1760781041832,-567.299841,0.0003238,30]
[391754645,1760781041843,-567.299841,0.0003238,30]
[391754646,1760781041852,-567.299841,0.0003238,30]
[391754647,1760781041864,-163.50921,0.0003238,30]
[391754648,1760781041875,-567.299841,0.0003238,30]
[391754649,1760781041886,-163.50921,0.0003238,30]
[391754650,1760781041898,-163.50921,0.0003238,30]
[391754651,1760781041907,-163.50921,0.0003238,30]
[391754652,1760781041918,-855.571366,0.0003238,30]
[391754653,1760781041927,-855.571366,0.0003238,30]
[391754654,1760781041936,-151.0,0.0003238,30]
[391754655,1760781041945,-855.571366,0.0003238,30]
[391754656,1760781041955,-151.0,0.0003238,30]
[391754657,1760781041964,-855.571366,0.0003238,30]
[391754658,1760781041973,-151.0,0.0003238,30]
[391754659,1760781041983,-151.0,0.0003238,30]
[391754660,1760781041992,-151.0,0.0003238,30]
[391754661,1760781042002,-151.0,0.0003238,30]
[391754662,1760781042011,-151.0,0.0003238,30]
[391754663,1760781042021,-151.0,0.0003238,30]
[391754664,1760781042030,-490.68182808,0.0003238,2]
[391754665,1760781042039,-1962.72731232,0.00032381,2]
[391754666,1760781042048,-151.0,0.00032381,30]
[391754667,1760781042058,-157.850419,0.00032381,30]
[391754668,1760781042067,-151.0,0.00032381,30]
[391754669,1760781042078,-151.0,0.00032381,30]
[391754670,1760781042088,-151.0,0.00032381,30]
[391754671,1760781042097,-157.850419,0.00032381,30]
[391754672,1760781042107,-151.0,0.00032381,30]
[391754673,1760781042117,-157.850419,0.00032381,30]
[391754674,1760781042127,-151.0,0.00032381,30]
[391754675,1760781042136,-157.850419,0.00032381,30]
[391754676,1760781042145,-151.0,0.00032381,30]
[391754677,1760781042155,-151.0,0.00032381,30]
[391754678,1760781042164,-151.0,0.00032381,30]
[391754679,1760781042174,-151.0,0.00032381,30]
[391754680,1760781042184,-151.0,0.00032381,30]
[391754681,1760781042195,-151.0,0.00032381,30]
[391754682,1760781042204,-151.0,0.00032381,30]
[391754683,1760781042214,-151.0,0.00032381,30]
[391754684,1760781042224,-113.83839572,0.00032381,30]
[391754685,1760781042243,-37.16160428,0.00032381,30]
[391754686,1760781042257,-151.0,0.00032381,30]
[391754687,1760781042266,-151.0,0.00032381,30]
[391754688,1760781042276,-151.0,0.00032381,30]
[391754689,1760781042289,-258.910321,0.00032381,30]
[391754690,1760781042299,-163.094313,0.00032381,15]
[391754691,1760781042309,-163.094313,0.00032381,15]
[391754692,1760781042318,-163.094313,0.00032381,15]
[391754693,1760781042330,-163.094313,0.00032381,15]
[391754694,1760781042340,-151.0,0.00032381,30]
[391754695,1760781042349,-279.36194,0.00032381,30]
[391754696,1760781042359,-279.36194,0.00032381,30]
[391754697,1760781042369,-279.36194,0.00032381,30]
[391754698,1760781042379,-279.36194,0.00032381,30]
[391754699,1760781042389,-151.0,0.00032381,30]
[391754700,1760781042399,-151.0,0.00032381,30]
[391754701,1760781042413,-151.0,0.00032381,30]
[391754702,1760781042422,-151.0,0.00032381,30]
[391754703,1760781042433,-151.0,0.00032381,30]
[391754704,1760781042443,-151.0,0.00032381,30]
[391754705,1760781042453,-151.0,0.00032381,30]
[391754706,1760781042462,-151.0,0.00032381,30]
[391754707,1760781042472,-151.0,0.00032381,30]
[391754708,1760781042483,-151.0,0.00032381,30]
[391754709,1760781042493,-151.0,0.00032381,30]
[391754710,1760781042502,-151.0,0.00032381,30]
[391754711,1760781042512,-151.0,0.00032381,30]
[391754712,1760781042522,-151.0,0.00032381,30]
[391754713,1760781042531,-151.0,0.00032381,30]
[391754714,1760781042540,-151.0,0.00032381,30]
[391754715,1760781042550,-151.0,0.00032381,30]
[391754716,1760781042560,-151.0,0.00032381,30]
[391754717,1760781042569,-151.0,0.00032381,30]
[391754718,1760781042579,-151.0,0.00032381,30]
[391754719,1760781042589,-175.549675,0.00032381,30]
[391754720,1760781042599,-175.549675,0.00032381,30]
[391754721,1760781042613,-175.549675,0.00032381,30]
[391754722,1760781042623,-566.411029,0.00032381,30]
[391754723,1760781042635,-151.0,0.00032381,30]
[391754724,1760781042645,-175.549675,0.00032381,30]
[391754725,1760781042655,-566.411029,0.00032381,30]
[391754726,1760781042664,-1049.482083,0.00032381,30]
[391754727,1760781042675,-151.0,0.00032381,30]
[391754728,1760781042685,-566.411029,0.00032381,30]
[391754729,1760781042695,-151.0,0.00032381,30]
[391754730,1760781042706,-1049.482083,0.00032381,30]
[391754731,1760781042717,-151.0,0.00032381,30]
[391754732,1760781042727,-566.411029,0.00032381,30]
[391754733,1760781042737,-151.0,0.00032381,30]
[391754734,1760781042746,-1049.482083,0.00032381,30]
[391754735,1760781042756,-151.0,0.00032381,30]
[391754736,1760781042766,-218.019776,0.00032381,30]
[391754737,1760781042777,-1049.482083,0.00032381,30]
[391754738,1760781042789,-151.0,0.00032381,30]
[391754739,1760781042799,-151.0,0.00032381,30]
[391754740,1760781042814,-194.655691,0.00032381,30]
[391754741,1760781042826,-151.0,0.00032381,30]
[391754742,1760781042836,-151.0,0.00032381,30]
[391754743,1760781042846,-151.0,0.00032381,30]
[391754744,1760781042856,-151.0,0.00032381,30]
[391754745,1760781042866,-153.3018,0.00032381,30]
[391754746,1760781042876,-151.0,0.00032381,30]
[391754747,1760781042885,-151.0,0.00032381,30]
[391754748,1760781042895,-151.0,0.00032381,30]
[391754749,1760781042912,-151.0,0.00032381,14]
[391754750,1760781042921,-151.0,0.00032381,30]
[391754751,1760781042931,-151.0,0.00032381,30]
[391754752,1760781042941,-151.0,0.00032381,30]
[391754753,1760781042951,-157.776782,0.00032381,30]
[391754754,1760781042961,-151.0,0.00032381,30]
[391754755,1760781042971,-151.0,0.00032381,30]
[391754756,1760781042981,-361.424291,0.00032381,30]
[391754757,1760781042991,-151.0,0.00032381,30]
[391754758,1760781043003,-361.424291,0.00032381,30]
[391754759,1760781043014,-151.0,0.00032381,30]
[391754760,1760781043024,-361.424291,0.00032381,30]
[391754761,1760781043034,-361.424291,0.00032381,30]
[391754763,1760781043044,-542.734858,0.00032381,30]
[391754765,1760781043061,-542.734858,0.00032381,30]
[391754767,1760781043076,-542.734858,0.00032381,30]
[391754768,1760781043260,-466.208917,0.00032381,30]
[391754769,1760781043270,-542.734858,0.00032381,30]
[391754770,1760781043279,-466.208917,0.00032381,30]
[391754771,1760781043289,-466.208917,0.00032381,30]
[391754772,1760781043299,-295.81451877,0.00032381,30]
[391754773,1760781043311,-170.39439823,0.00032381,30]
[391754774,1760781043321,-151.0,0.00032381,30]
[391754775,1760781043332,-151.0,0.00032381,30]
[391754776,1760781043343,-151.0,0.00032381,30]
[391754777,1760781043354,-151.0,0.00032381,30]
[391754778,1760781043363,-192.669844,0.00032381,30]
[391754779,1760781043372,-684.736933,0.00032381,30]
[391754780,1760781043382,-684.736933,0.00032381,30]
[391754781,1760781043392,-228.63991958,0.00032381,30]
[391754782,1760781043403,-235.63236142,0.00032381,30]
[391754783,1760781043413,-472.50884157,0.00032381,30]
[391754784,1760781043424,-212.22809143,0.00032381,30]
[391754785,1760781043434,-464.272281,0.00032381,30]
[391754786,1760781043443,-684.736933,0.00032381,30]
[391754787,1760781043453,-464.272281,0.00032381,30]
[391754788,1760781043462,-464.272281,0.00032381,30]
[391754789,1760781043472,-151.0,0.00032381,30]
[391754790,1760781043481,-233.99538,0.00032381,30]
[391754791,1760781043490,-151.0,0.00032381,30]
[391754792,1760781043499,-151.0,0.00032381,30]
[391754793,1760781043508,-578.766229,0.00032381,30]
[391754794,1760781043518,-151.0,0.00032381,30]
[391754795,1760781043527,-578.766229,0.00032381,30]
[391754796,1760781043537,-151.0,0.00032381,30]
[391754797,1760781043546,-578.766229,0.00032381,30]
[391754798,1760781043555,-578.766229,0.00032381,30]
[391754799,1760781043565,-151.0,0.00032381,30]
[391754800,1760781043574,-151.0,0.00032381,30]
[391754801,1760781043584,-241.985952,0.00032381,30]
[391754802,1760781043593,-151.0,0.00032381,30]
[391754803,1760781043602,-151.0,0.00032381,30]
[391754804,1760781043612,-161.448204,0.00032381,30]
[391754805,1760781043621,-151.0,0.00032381,30]
[391754806,1760781043631,-415.438218,0.00032381,30]
[391754807,1760781043640,-524.33734211,0.00032383,2]
[391754808,1760781043650,-198.47,0.00032387,2]
[391754809,1760781043659,-300.0,0.00032388,10]
[391754810,1760781043669,-6248.29995489,0.00032389,30]
[391754811,1760781043680,-9864.83172179,0.00032389,30]
[391754812,1760781043763,-415.438218,0.00032381,30]
[391754813,1760781043772,-9629.27132678,0.00032389,30]
[391754814,1760781043787,-264.42,0.00032389,30]
[391754815,1760781043802,-675.53657424,0.00032389,30]
[391754816,1760781043813,-1607.42635572,0.00032389,30]
[391754817,1760781044793,-306.069,0.00032389,30]
[391754818,1760781044808,-720.98755508,0.00032389,30]
[391754819,1760781044820,-74125.18175763,0.00032389,30]
[391754820,1760781044836,-11029.92184342,0.00032389,30]
[391754821,1760781044847,-45058.0900164,0.00032389,30]
[391754822,1760781044952,-168.27,0.00031671,2]
[391754823,1760781044962,-258.42418598,0.00032381,30]
[391754824,1760781044973,-157.01403202,0.00032381,30]
[391754825,1760781044982,-238.90240597,0.00032381,30]
[391754826,1760781046314,-176.53581203,0.00032381,30]
[391754827,1760781046324,-3076.35019901,0.00032389,30]
[391754832,1760781112909,500.0,0.00032622,60]
[391754837,1760781340481,310.00034202,0.00032622,30]
[391754912,1760781806854,2388.36193835,0.00032623,120]
[391754913,1760781834771,1427.13045393,0.00032623,120]
[391755067,1760782232383,-250.0,0.00017,2]
[391755068,1760782232393,-1000.0,0.00029,3]
[391755069,1760782232402,-4.41808677,0.0002929,2]
[391755070,1760782232413,-145.58191323,0.0002929,2]
[391755071,1760782232422,-154.54210176,0.00029293,7]
[391755072,1760782232431,-164.15496035,0.00029293,7]
[391755073,1760782232440,-150.00000001,0.00029293,7]
[391755074,1760782232449,-166.66,0.00029507,30]
[391755075,1760782232459,-505.0,0.00030055,2]
[391755076,1760782232468,-166.66,0.00030129,30]
[391755077,1760782232477,-1832.49336929,0.00030145,2]
[391755078,1760782232488,-1098.710039,0.00030145,2]
[391755079,1760782232542,-500.8199223,0.00030145,2]
[391755080,1760782232596,-483.97666941,0.00030145,2]
[391755081,1760782232607,-2333.93422402,0.00030374,2]
[391755082,1760782232651,-509.5,0.00030374,2]
[391755483,1760782238323,-1072.56577598,0.00030374,2]
[391755484,1760782238332,-3916.0,0.00030482,2]
[391755485,1760782238341,-3915.0,0.00030526,7]
[391755486,1760782238351,-166.66,0.0003075,30]
[391755487,1760782238361,-250.0,0.00030832,2]
[391755488,1760782238370,-382.28,0.00030844,2]
[391755489,1760782238380,-3915.0,0.00030853,2]
[391755490,1760782238390,-3915.0,0.00030903,2]
[391755491,1760782238399,-582.69,0.00030906,2]
[391755492,1760782238408,-804.05,0.00030952,2]
[391755493,1760782238417,-256.0,0.00031044,2]
[391755494,1760782238427,-810.0,0.00031103,2]
[391755495,1760782238436,-5630.8,0.000312,2]
[391755496,1760782238446,-2538.95422402,0.00031234,2]
[391755497,1760782238457,-1118.09244252,0.00031234,2]
[391755498,1760782238468,-1342.95333346,0.00031234,2]
[391755499,1760782238477,-256.0,0.00031273,7]
[391755500,1760782238487,-629.34666651,0.00031297,2]
[391755501,1760782238498,-559.4589,0.00031297,2]
[391755502,1760782238508,-2726.19443349,0.00031297,2]
[391755503,1760782238518,-264.43115304,0.00031297,2]
[391755513,1760782240310,-268.56884696,0.00031297,2]
[391755514,1760782240319,-256.0,0.00031338,2]
[391755515,1760782240328,-232.25458024,0.00031345,2]
[391755516,1760782240341,-767.74541976,0.00031345,2]
[391755517,1760782240351,-158.1426644,0.00031345,2]
[391755518,1760782240361,-250.0,0.00031345,2]
[391755519,1760782240370,-2335.17697652,0.00031345,2]
[391755520,1760782240380,-250.0,0.00031345,2]
[391755521,1760782240390,-277.35679052,0.00031345,2]
[391755522,1760782240399,-250.0,0.00031345,2]
[391755523,1760782240407,-250.0,0.00031345,2]
[391755524,1760782240416,-250.0,0.00031345,2]
[391755525,1760782240425,-250.0,0.00031345,2]
[391755526,1760782240435,-250.0,0.00031345,2]
[391755527,1760782240444,-283.01585621,0.00031345,2]
[391755528,1760782240454,-1000.0,0.00031345,2]
[391755529,1760782240464,-1000.0,0.00031345,2]
[391755530,1760782240473,-1000.0,0.00031345,2]
[391755531,1760782240482,-1000.0,0.00031345,2]
[391755532,1760782240492,-1000.0,0.00031345,2]
[391755533,1760782240501,-1000.0,0.00031345,2]
[391755534,1760782240510,-1000.0,0.00031345,2]
[391755535,1760782240519,-1000.0,0.00031345,2]
[391755536,1760782240529,-1000.0,0.00031345,2]
[391755537,1760782240538,-1000.0,0.00031345,2]
[391755538,1760782240547,-1000.0,0.00031345,2]
[391755539,1760782240557,-256.0,0.00031363,7]
[391755540,1760782240566,-806.909,0.00031363,29]
[391755541,1760782240576,-4102.58510475,0.00031364,2]